fUST/lending_fUST_20240417
["ID","MTS","AMOUNT","RATE_DAILY","PERIOD"]
[322785557,1713288499689,-500.0,0.00038028,40]
[322785558,1713288499711,-500.0,0.00038028,40]
[322785559,1713288499736,-500.0,0.00038028,40]
[322785560,1713288499759,-500.0,0.00038028,40]
[322785561,1713288499781,-500.0,0.00038028,40]
[322785562,1713288499805,-500.0,0.00038028,40]
[322785563,1713288499830,-500.0,0.00038028,40]
[322785564,1713288499853,-500.0,0.00038028,40]
[322785565,1713288499877,-500.0,0.00038028,40]
[322785566,1713288499901,-500.0,0.00038028,40]
[322785567,1713288499925,-500.0,0.00038028,40]
[322785568,1713288499948,-500.0,0.00038028,40]
[322785569,1713288499972,-500.0,0.00038028,40]
[322785570,1713288499999,-500.0,0.00038028,40]
[322785571,1713288500022,-500.0,0.00038028,40]
[322785572,1713288500045,-500.0,0.00038028,40]
[322785573,1713288500072,-500.0,0.00038028,40]
[322785574,1713288500095,-500.0,0.00038028,40]
[322785575,1713288500118,-500.0,0.00038028,40]
[322785576,1713288500141,-500.0,0.00038028,40]
[322785577,1713288500166,-500.0,0.00038028,40]
[322785578,1713288500191,-500.0,0.00038028,40]
[322785579,1713288500215,-166.35,0.00038028,40]
[322785580,1713288500239,-500.0,0.00038028,40]
[322785581,1713288500264,-500.0,0.00038028,40]
[322785582,1713288500288,-500.0,0.00038028,40]
[322785583,1713288500311,-500.0,0.00038028,40]
[322785584,1713288500335,-500.0,0.00038028,40]
[322785585,1713288500359,-500.0,0.00038028,40]
[322785586,1713288500383,-500.0,0.00038028,40]
[322785587,1713288500407,-500.0,0.00038028,40]
[322785588,1713288500430,-500.0,0.00038028,40]
[322785589,1713288500454,-500.0,0.00038028,40]
[322785590,1713288500481,-500.0,0.00038028,40]
[322785591,1713288500509,-500.0,0.00038028,40]
[322785592,1713288500543,-500.0,0.00038028,40]
[322785593,1713288500572,-500.0,0.00038028,40]
[322785594,1713288500601,-500.0,0.00038028,40]
[322785595,1713288500631,-500.0,0.00038028,40]
[322785596,1713288500659,-500.0,0.00038028,40]
[322785597,1713288500686,-499.97693314,0.00038028,40]
[322785598,1713288500716,-500.0,0.00038028,40]
[322785599,1713288500744,-500.0,0.00038028,40]
[322785600,1713288500771,-500.0,0.00038028,40]
[322785601,1713288500797,-500.0,0.00038028,40]
[322785602,1713288500824,-500.0,0.00038028,40]
[322785603,1713288500851,-500.0,0.00038028,40]
[322785604,1713288500879,-547.4,0.00038028,40]
[322785605,1713288500905,-500.0,0.00038028,40]
[322785606,1713288500931,-547.4,0.00038028,40]
[322785607,1713288500957,-229.955526,0.00038028,40]
[322785608,1713288500983,-547.4,0.00038028,40]
[322785609,1713288501009,-547.4,0.00038028,40]
[322785610,1713288501034,-547.4,0.00038028,40]
[322785611,1713288501058,-547.4,0.00038028,40]
[322785612,1713288501096,-547.4,0.00038028,40]
[322785613,1713288501120,-547.4,0.00038028,40]
[322785614,1713288501147,-547.4,0.00038028,40]
[322785615,1713288501171,-547.4,0.00038028,40]
[322785616,1713288501194,-604.19,0.00038028,40]
[322785617,1713288501218,-547.4,0.00038028,40]
[322785618,1713288501242,-604.19,0.00038028,40]
[322785619,1713288501266,-547.4,0.00038028,40]
[322785620,1713288501289,-604.19,0.00038028,40]
[322785621,1713288501312,-547.4,0.00038028,40]
[322785622,1713288501337,-604.19,0.00038028,40]
[322785623,1713288501360,-547.4,0.00038028,40]
[322785624,1713288501383,-604.19,0.00038028,40]
[322785625,1713288501406,-547.4,0.00038028,40]
[322785626,1713288501430,-500.0,0.00038028,40]
[322785627,1713288501453,-547.4,0.00038028,40]
[322785628,1713288501478,-500.0,0.00038028,40]
[322785629,1713288501501,-604.19,0.00038028,40]
[322785630,1713288501525,-500.0,0.00038028,40]
[322785631,1713288501553,-547.4,0.00038028,40]
[322785632,1713288501575,-500.0,0.00038028,40]
[322785633,1713288501599,-604.19,0.00038028,40]
[322785634,1713288501623,-500.0,0.00038028,40]
[322785635,1713288501647,-547.4,0.00038028,40]
[322785636,1713288501797,-500.0,0.00038028,40]
[322785637,1713288501825,-604.19,0.00038028,40]
[322785638,1713288501849,-500.0,0.00038028,40]
[322785639,1713288501874,-547.4,0.00038028,40]
[322785640,1713288501898,-604.19,0.00038028,40]
[322785641,1713288501921,-500.0,0.00038028,40]
[322785642,1713288501945,-500.0,0.00038028,40]
[322785643,1713288501969,-547.4,0.00038028,40]
[322785644,1713288501993,-604.19,0.00038028,40]
[322785645,1713288502020,-500.0,0.00038028,40]
[322785646,1713288502044,-547.4,0.00038028,40]
[322785647,1713288502069,-500.0,0.00038028,40]
[322785648,1713288502102,-547.4,0.00038028,40]
[322785649,1713288502131,-500.0,0.00038028,40]
[322785650,1713288502155,-604.19,0.00038028,40]
[322785651,1713288502180,-547.4,0.00038028,40]
[322785652,1713288502203,-547.42673321,0.00038028,40]
[322785653,1713288502226,-604.19,0.00038028,40]
[322785654,1713288502250,-500.0,0.00038028,40]
[322785655,1713288502273,-604.19,0.00038028,40]
[322785656,1713288502296,-583.33,0.00038028,40]
[322785657,1713288502319,-500.0,0.00038028,40]
[322785658,1713288502342,-604.19,0.00038028,40]
[322785659,1713288502365,-583.33,0.00038028,40]
[322785660,1713288502389,-500.0,0.00038028,40]
[322785661,1713288502413,-500.0,0.00038028,40]
[322785662,1713288502437,-604.19,0.00038028,40]
[322785663,1713288502461,-583.33,0.00038028,40]
[322785664,1713288502483,-500.0,0.00038028,40]
[322785665,1713288502506,-500.0,0.00038028,40]
[322785666,1713288502529,-583.33,0.00038028,40]
[322785667,1713288502553,-604.19,0.00038028,40]
[322785668,1713288502596,-500.0,0.00038028,40]
[322785669,1713288502620,-500.0,0.00038028,40]
[322785670,1713288502644,-604.19,0.00038028,40]
[322785671,1713288502668,-500.0,0.00038028,40]
[322785672,1713288502691,-500.0,0.00038028,40]
[322785673,1713288502714,-583.33,0.00038028,40]
[322785674,1713288502738,-604.19,0.00038028,40]
[322785675,1713288502762,-500.0,0.00038028,40]
[322785676,1713288502787,-500.0,0.00038028,40]
[322785677,1713288502810,-604.19,0.00038028,40]
[322785678,1713288502834,-583.33,0.00038028,40]
[322785679,1713288502859,-500.0,0.00038028,40]
[322785680,1713288502883,-500.0,0.00038028,40]
[322785681,1713288502906,-604.19,0.00038028,40]
[322785682,1713288502929,-583.33,0.00038028,40]
[322785683,1713288502953,-591.84,0.00038028,40]
[322785684,1713288502981,-500.0,0.00038028,40]
[322785685,1713288503006,-604.19,0.00038028,40]
[322785686,1713288503029,-583.33,0.00038028,40]
[322785687,1713288503054,-500.0,0.00038028,40]
[322785688,1713288503090,-591.84,0.00038028,40]
[322785689,1713288503116,-500.0,0.00038028,40]
[322785690,1713288503139,-604.19,0.00038028,40]
[322785691,1713288503161,-583.33,0.00038028,40]
[322785692,1713288503184,-591.84,0.00038028,40]
[322785693,1713288503208,-500.0,0.00038028,40]
[322785694,1713288503231,-500.0,0.00038028,40]
[322785695,1713288503254,-604.19,0.00038028,40]
[322785696,1713288503278,-583.33,0.00038028,40]
[322785697,1713288503301,-591.84,0.00038028,40]
[322785698,1713288503327,-500.0,0.00038028,40]
[322785699,1713288503351,-604.28,0.00038028,40]
[322785700,1713288503376,-500.0,0.00038028,40]
[322785701,1713288503399,-583.33,0.00038028,40]
[322785702,1713288503423,-591.84,0.00038028,40]
[322785703,1713288503448,-299.76947038,0.00038028,40]
[322785704,1713288503472,-500.0,0.00038028,40]
[322785705,1713288503496,-500.0,0.00038028,40]
[322785706,1713288503519,-591.84,0.00038028,40]
[322785707,1713288503543,-583.33,0.00038028,40]
[322785708,1713288503568,-500.0,0.00038028,40]
[322785709,1713288503596,-500.0,0.00038028,40]
[322785710,1713288503619,-583.33,0.00038028,40]
[322785711,1713288503644,-591.84,0.00038028,40]
[322785712,1713288503667,-500.0,0.00038028,40]
[322785713,1713288503691,-500.0,0.00038028,40]
[322785714,1713288503714,-583.33,0.00038028,40]
[322785715,1713288503738,-591.84,0.00038028,40]
[322785716,1713288503763,-500.0,0.00038028,40]
[322785717,1713288503787,-500.0,0.00038028,40]
[322785718,1713288503811,-591.84,0.00038028,40]
[322785719,1713288503837,-583.33,0.00038028,40]
[322785720,1713288503861,-500.0,0.00038028,40]
[322785721,1713288503886,-583.33,0.00038028,40]
[322785722,1713288503909,-591.84,0.00038028,40]
[322785723,1713288503932,-590.13222776,0.00038028,40]
[322785724,1713288503956,-591.84,0.00038028,40]
[322785725,1713288503980,-583.33,0.00038028,40]
[322785726,1713288504004,-591.84,0.00038028,40]
[322785727,1713288504027,-583.33,0.00038028,40]
[322785728,1713288504049,-591.84,0.00038028,40]
[322785729,1713288504078,-500.0,0.00038028,40]
[322785730,1713288504101,-583.33,0.00038028,40]
[322785731,1713288504125,-591.84,0.00038028,40]
[322785732,1713288504150,-583.33,0.00038028,40]
[322785733,1713288504174,-591.84,0.00038028,40]
[322785734,1713288504197,-583.33,0.00038028,40]
[322785735,1713288504220,-591.84,0.00038028,40]
[322785736,1713288504243,-583.33,0.00038028,40]
[322785737,1713288504268,-591.84,0.00038028,40]
[322785738,1713288504292,-583.33,0.00038028,40]
[322785739,1713288504315,-591.84,0.00038028,40]
[322785740,1713288504341,-583.41,0.00038028,40]
[322785741,1713288504528,-500.0,0.00038028,40]
[322785742,1713288504554,-591.84,0.00038028,40]
[322785743,1713288504581,-591.84,0.00038028,40]
[322785744,1713288504605,-500.0,0.00038028,40]
[322785745,1713288504630,-591.84,0.00038028,40]
[322785746,1713288504657,-500.0,0.00038028,40]
[322785747,1713288504681,-591.84,0.00038028,40]
[322785748,1713288504706,-591.84,0.00038028,40]
[322785749,1713288504729,-591.91471977,0.00038028,40]
[322785750,1713288504753,-854.16,0.00038028,40]
[322785751,1713288504777,-854.16,0.00038028,40]
[322785752,1713288504800,-854.16,0.00038028,40]
[322785753,1713288504825,-687.5,0.00038028,40]
[322785754,1713288504849,-854.16,0.00038028,40]
[322785755,1713288504872,-687.5,0.00038028,40]
[322785756,1713288504896,-854.16,0.00038028,40]
[322785757,1713288504920,-687.5,0.00038028,40]
[322785758,1713288504944,-854.16,0.00038028,40]
[322785759,1713288504967,-687.5,0.00038028,40]
[322785760,1713288504992,-770.83,0.00038028,40]
[322785761,1713288505018,-854.16,0.00038028,40]
[322785762,1713288505042,-687.5,0.00038028,40]
[322785763,1713288505066,-854.16,0.00038028,40]
[322785764,1713288505093,-770.83,0.00038028,40]
[322785765,1713288505116,-685.62565697,0.00038028,40]
[322785766,1713288618713,-766.0,0.0003397,35]
[322785767,1713288618738,-369.0,0.0003397,35]
[322785768,1713288618765,-766.0,0.0003398,35]
[322785769,1713288618803,-369.0,0.0003398,35]
[322785770,1713288618827,-251.0,0.0003399,35]
[322785771,1713288618852,-214.54,0.0003399,35]
[322785772,1713288618876,-766.0,0.0003399,35]
[322785773,1713288618902,-369.0,0.0003399,35]
[322785774,1713288618928,-896129.46,0.00034,60]
[322785775,1713288628190,-900000.0,0.00034,60]
[322785809,1713288632162,-203.59775165,0.00027191,2]
[322785811,1713288632172,-581.77700051,0.00027192,5]
[322785813,1713288632182,-203.59775165,0.0002729,2]
[322785815,1713288632191,-206.757643,0.00027397,2]
[322785817,1713288632202,-178.203014,0.00028805,2]
[322785819,1713288632212,-181.84716038,0.00029079,2]
[322785822,1713288632228,-818.15283962,0.00029079,2]
[322785839,1713288632380,-2761.97115193,0.00029834,2]
[322785932,1713288636300,-543892.49871713,0.00034,60]
[322785933,1713288636325,-26352.1501,0.00034388,30]
[322785934,1713288636351,-12535.18654488,0.00035,30]
[322785935,1713288636375,-16150.0,0.00035,30]
[322785936,1713288636399,-348.0,0.00035,30]
[322785937,1713288636427,-147702.0,0.00035,30]
[322785938,1713288636451,-2052.678817,0.00035616,120]
[322785939,1713288636476,-9999.0,0.00036,30]
[322785940,1713288636500,-563.8592,0.00036388,30]
[322785941,1713288636525,-1099.6613126,0.0003707,31]
[322785942,1713288636553,-3000.0,0.000375,32]
[322785943,1713288636578,-3000.0,0.0003751,32]
[322785944,1713288636602,-3000.0,0.0003752,32]
[322785945,1713288636626,-3000.0,0.0003753,32]
[322785946,1713288636650,-3000.0,0.0003754,32]
[322785947,1713288636680,-3000.0,0.0003755,32]
[322785948,1713288636704,-3000.0,0.0003756,32]
[322785949,1713288636729,-3000.0,0.0003757,32]
[322785950,1713288636754,-3000.0,0.0003758,32]
[322785951,1713288636778,-3000.0,0.0003759,32]
[322785952,1713288636804,-3000.0,0.000376,32]
[322785953,1713288636829,-3000.0,0.0003761,32]
[322785954,1713288636855,-3000.0,0.0003762,32]
[322785955,1713288636880,-3000.0,0.0003763,32]
[322785956,1713288636908,-3000.0,0.0003764,32]
[322785957,1713288636933,-3000.0,0.0003765,32]
[322785958,1713288636957,-3000.0,0.0003766,32]
[322785959,1713288636981,-3000.0,0.0003767,32]
[322785960,1713288637006,-3000.0,0.0003768,32]
[322785961,1713288637032,-3000.0,0.0003769,32]
[322785962,1713288637060,-3000.0,0.000377,32]
[322785963,1713288637084,-3000.0,0.0003771,32]
[322785964,1713288637109,-3000.0,0.0003772,32]
[322785965,1713288637132,-3000.0,0.0003773,32]
[322785966,1713288637158,-3000.0,0.0003774,32]
[322785967,1713288637182,-3000.0,0.0003775,32]
[322785968,1713288637206,-3000.0,0.0003776,33]
[322785969,1713288637231,-3000.0,0.0003777,33]
[322785970,1713288637255,-3000.0,0.0003778,33]
[322785971,1713288637278,-3000.0,0.0003779,33]
[322785972,1713288637301,-3000.0,0.000378,33]
[322785973,1713288637325,-3000.0,0.0003781,33]
[322785974,1713288637351,-3000.0,0.0003782,33]
[322785975,1713288637376,-3000.0,0.0003783,33]
[322785976,1713288637400,-3000.0,0.0003784,33]
[322785977,1713288637430,-3000.0,0.0003785,33]
[322785978,1713288637454,-3000.0,0.0003786,33]
[322785981,1713288637480,-3000.0,0.0003787,33]
[322785983,1713288637505,-3000.0,0.0003788,33]
[322785986,1713288637530,-3000.0,0.0003789,33]
[322785987,1713288637554,-3000.0,0.000379,33]
[322785988,1713288637578,-3000.0,0.0003791,33]
[322785990,1713288637602,-3000.0,0.0003792,33]
[322785992,1713288637631,-5269.744416,0.0003793,33]
[322785994,1713288637659,-369.0,0.00037991,35]
[322785997,1713288637683,-4666.22089239,0.00038,30]
[322786006,1713288638169,-203.59775165,0.0002719,2]
[322786007,1713288638179,-1882.94033606,0.00029834,2]
[322786008,1713288638192,-514.90477905,0.00029834,2]
[322786022,1713288640938,-92344.4106123,0.00038,30]
[322786025,1713288640962,-20000.0,0.00038,30]
[322786029,1713288640988,-300.0,0.00038,30]
[322786032,1713288641015,-369.0,0.00038001,35]
[322786036,1713288641040,-369.0,0.00038011,35]
[322786047,1713288641135,-161964.39040465,0.00038028,120]
[322786050,1713288641164,-766.0,0.0003804,35]
[322786070,1713288641362,-766.0,0.0003805,35]
[322786071,1713288641387,-766.0,0.0003806,35]
[322786072,1713288641415,-500.0,0.00038356,40]
[322786073,1713288641438,-500.0,0.00038356,40]
[322786074,1713288641462,-500.0,0.00038356,40]
[322786075,1713288641485,-504.88041726,0.00038356,40]
[322786076,1713288641508,-500.0,0.00038356,40]
[322786077,1713288641531,-500.0,0.00038356,40]
[322786078,1713288641554,-500.0,0.00038356,40]
[322786079,1713288641578,-500.0,0.00038356,40]
[322786080,1713288641601,-500.0,0.00038356,40]
[322786081,1713288641623,-500.0,0.00038356,40]
[322786082,1713288641646,-500.0,0.00038356,40]
[322786083,1713288641675,-500.0,0.00038356,40]
[322786084,1713288641698,-500.0,0.00038356,40]
[322786085,1713288641721,-500.0,0.00038356,40]
[322786086,1713288641745,-500.0,0.00038356,40]
[322786087,1713288641769,-500.0,0.00038356,40]
[322786088,1713288641794,-500.0,0.00038356,40]
[322786089,1713288641818,-500.0,0.00038356,40]
[322786090,1713288641841,-414.58544076,0.00038356,40]
[322786091,1713288641864,-500.0,0.00038356,40]
[322786092,1713288641887,-506.9543067,0.00038356,40]
[322786093,1713288641916,-500.0,0.00038356,40]
[322786094,1713288641940,-500.0,0.00038356,40]
[322786095,1713288641963,-500.0,0.00038356,40]
[322786096,1713288641987,-500.0,0.00038356,40]
[322786097,1713288642012,-500.0,0.00038356,40]
[322786098,1713288642037,-500.0,0.00038356,40]
[322786099,1713288642060,-500.0,0.00038356,40]
[322786100,1713288642084,-500.0,0.00038356,40]
[322786101,1713288642109,-500.0,0.00038356,40]
[322786102,1713288642134,-500.0,0.00038356,40]
[322786103,1713288642163,-500.0,0.00038356,40]
[322786104,1713288642188,-500.0,0.00038356,40]
[322786105,1713288642214,-500.0,0.00038356,40]
[322786106,1713288642239,-500.0,0.00038356,40]
[322786107,1713288642262,-500.0,0.00038356,40]
[322786108,1713288642286,-500.0,0.00038356,40]
[322786109,1713288642310,-170.44559561,0.00038356,40]
[322786110,1713288642334,-528.32074702,0.00038356,40]
[322786111,1713288642358,-500.0,0.00038356,40]
[322786112,1713288642382,-590.56121617,0.00038356,40]
[322786113,1713288642406,-502.51098978,0.00038356,40]
[322786114,1713288642434,-6044.86,0.00038356,40]
[322786115,1713288642458,-6044.86,0.00038356,40]
[322786116,1713288642483,-6044.86,0.00038356,40]
[322786118,1713288642508,-6044.86,0.00038356,40]
[322786121,1713288642533,-6044.86,0.00038356,40]
[322786125,1713288642557,-6044.86,0.00038356,40]
[322786129,1713288642581,-6044.86,0.00038356,40]
[322786132,1713288642605,-6044.86,0.00038356,40]
[322786136,1713288642629,-6044.86,0.00038356,40]
[322786140,1713288642653,-6044.86,0.00038356,40]
[322786147,1713288642681,-6044.86,0.00038356,40]
[322786152,1713288642706,-6044.86,0.00038356,40]
[322786157,1713288642731,-6044.86,0.00038356,40]
[322786162,1713288642755,-6044.86,0.00038356,40]
[322786165,1713288642780,-6044.86,0.00038356,40]
[322786169,1713288642805,-6044.86,0.00038356,40]
[322786172,1713288642827,-6044.86,0.00038356,40]
[322786176,1713288642851,-6044.86,0.00038356,40]
[322786182,1713288642875,-6044.86,0.00038356,40]
[322786186,1713288642901,-6044.86,0.00038356,40]
[322786192,1713288642936,-6044.86,0.00038356,40]
[322786198,1713288642961,-6044.86,0.00038356,40]
[322786201,1713288642986,-6044.86,0.00038356,40]
[322786203,1713288643013,-6044.86941136,0.00038356,40]
[322786206,1713288643037,-500.0,0.00038491,30]
[322786209,1713288643061,-225.70341701,0.00038491,30]
[322786212,1713288643086,-2828.0,0.00038677,40]
[322786214,1713288643110,-62627.57807861,0.00039,120]
[322786217,1713288643134,-327.72382144,0.00039864,30]
[322786218,1713288643164,-1000.0,0.0004,120]
[322786219,1713288643190,-213.52189365,0.0004005,30]
[322786220,1713288643214,-159.24718613,0.00040063,30]
[322786221,1713288643239,-153.32847724,0.00040078,30]
[322786222,1713288643265,-213.52189365,0.00040229,30]
[322786223,1713288643292,-213.52189365,0.00040372,30]
[322786224,1713288643317,-213.52189365,0.00040406,30]
[322786225,1713288643343,-213.52189365,0.00040468,30]
[322786226,1713288643367,-154.10504796,0.00040477,30]
[322786227,1713288643392,-150.47048876,0.00040522,30]
[322786228,1713288643426,-153.32847724,0.00040536,30]
[322786229,1713288643449,-150.47048876,0.00040666,30]
[322786230,1713288643474,-213.52189365,0.00040697,30]
[322786231,1713288643498,-154.10504796,0.0004073,30]
[322786232,1713288643522,-213.52189365,0.00040736,30]
[322786233,1713288643545,-159.24718613,0.00040855,30]
[322786234,1713288643569,-213.52189365,0.00040886,30]
[322786235,1713288643593,-213.52189365,0.00040887,30]
[322786236,1713288643617,-213.52189365,0.00040967,30]
[322786237,1713288643639,-155.65530819,0.00041,120]
[322786238,1713288643669,-159.24851255,0.00041095,120]
[322786240,1713288644102,-15137.12815311,0.00029834,2]
[322786494,1713289840541,-154.84515485,0.00024892,2]
[322786495,1713289840552,-203.59775165,0.00024893,2]
[322786496,1713289840563,-188.93614172,0.00024894,2]
[322786497,1713289840574,-468.90340767,0.00024895,2]
[322786498,1713289840584,-154.84515485,0.00024896,2]
[322786499,1713289840595,-154.84515485,0.00024897,2]
[322786500,1713289840603,-300.0,0.00024898,2]
[322786501,1713289840612,-300.0,0.00024898,2]
[322786502,1713289840622,-683.88632452,0.00024899,2]
[322787837,1713291032548,-188.93614172,0.00022797,2]
[322787839,1713291032557,-2172.36679479,0.00022798,2]
[322787841,1713291032567,-150.0,0.00022799,2]
[322787844,1713291032576,-500.0,0.00023582,2]
[322787847,1713291032585,-200.0,0.00024658,15]
[322787849,1713291032594,-415.83350237,0.00024799,2]
[322787943,1713291038624,-238.10988426,0.00024799,2]
[322787944,1713291038633,-232.78546639,0.00024897,2]
[322787945,1713291038643,-500.0,0.00024897,2]
[322787946,1713291038652,-231.98241699,0.00024897,2]
[322787947,1713291038661,-300.0,0.00024897,2]
[322787948,1713291038671,-937.19103165,0.00024898,2]
[322787949,1713291038681,-503.92324481,0.00024898,2]
[322787950,1713291038690,-181.38411666,0.00024898,2]
[322788153,1713291886814,-6919.71532333,0.00022797,2]
[322788154,1713291886839,-150.0,0.00022798,2]
[322788155,1713291886863,-572.20046331,0.00024799,2]
[322788156,1713291886887,-2.02951352,0.00024898,2]
[322788157,1713291886910,-207.6790767,0.00024898,2]
[322788158,1713291886935,-79316.11367548,0.00024899,2]
[322788159,1713291886959,-324.08693761,0.00024899,2]
[322788160,1713291886984,-20394.26066441,0.000249,2]
[322788161,1713291887009,-163.47324543,0.00026748,2]
[322788162,1713291887035,-344.2532532,0.00026848,5]
[322788163,1713291887062,-179.364738,0.00027067,2]
[322788164,1713291887089,-249.641266,0.00027397,2]
[322788165,1713291887117,-219.352306,0.00027397,2]
[322788166,1713291887145,-196.41976,0.00027397,2]
[322788167,1713291887172,-196.383095,0.00027397,2]
[322788168,1713291887196,-175.781378,0.00027397,2]
[322788169,1713291887221,-822.3800135,0.00027397,2]
[322788170,1713291887248,-196.383095,0.00028466,2]
[322788171,1713291887277,-163.47324542,0.00029432,2]
[322788172,1713291887303,-196.383095,0.00029534,2]
[322788173,1713291887331,-365.78751188,0.00029831,2]
[322788174,1713291887357,-277.28508716,0.00029831,2]
[322788175,1713291887383,-470.37808979,0.00029831,2]
[322788176,1713291887407,-180.13273192,0.00029831,2]
[322788177,1713291887434,-361.05831142,0.00029831,2]
[322788178,1713291887459,-265.08790622,0.00029831,7]
[322788179,1713291887483,-3968.57199886,0.00029831,2]
[322788180,1713291887509,-264.05985318,0.00029832,2]
[322788181,1713291887534,-755.28547886,0.00029834,2]
[322788182,1713291887560,-120547.78200117,0.00029834,14]
[322788183,1713291887585,-3062.24756483,0.00029834,4]
[322788184,1713291887611,-441.17025931,0.00029834,2]
[322788185,1713291887638,-51962.92652477,0.00029835,2]
[322788186,1713291887663,-3626.05451384,0.0003,2]
[322788187,1713291887690,-197.049013,0.00030137,2]
[322788188,1713291892277,161.92429212,0.00029835,3]
[322788382,1713292238725,-344.2532532,0.0002685,5]
[322788383,1713292238735,-196.383095,0.00028344,2]
[322788385,1713292238745,-196.383095,0.00029632,2]
[322788386,1713292238753,-14514.3007591,0.00029635,2]
[322788387,1713292238763,-264.05985318,0.00029803,2]
[322788389,1713292238773,-361.05831142,0.00029833,2]
[322788391,1713292238782,-277.28508716,0.00029833,2]
[322788392,1713292238792,-265.08790622,0.00029833,7]
[322788393,1713292238801,-180.13273192,0.00029833,2]
[322788394,1713292238810,-365.78751188,0.00029833,2]
[322788395,1713292238819,-207.6790767,0.00029833,2]
[322788396,1713292238829,-470.37808979,0.00029833,2]
[322788397,1713292238839,-1113.85018029,0.00029834,2]
[322788398,1713292238848,-324.08693761,0.00029834,2]
[322788399,1713292238858,-3062.24756483,0.00029835,4]
[322788400,1713292238867,-50058.62299554,0.00029835,14]
[322788617,1713293370297,-70489.15900563,0.00029835,14]
[322788618,1713293370322,-154.84515485,0.0003189,10]
[322788619,1713293370345,-438.65261836,0.0003399,20]
[322788620,1713293370368,-774.84313601,0.00034,60]
[322788621,1713293370392,-15252.86848052,0.00034555,10]
[322788622,1713293370417,-298131.6980164,0.0003488,21]
[322788623,1713293370441,-218.0,0.00035,10]
[322788624,1713293370466,-114539.93358823,0.00035,30]
[322788625,1713293375351,-10753.94739964,0.00035,30]
[322788626,1713293375378,-1755.878222,0.00035616,120]
[322788627,1713293375402,-158735.86413242,0.00036,14]
[322788628,1713293375428,-563.8592,0.00036175,30]
[322788629,1713293375455,-150.0,0.000375,32]
[322788630,1713293375671,-189.07296827,0.00037819,15]
[322788631,1713293375697,-536.0,0.00037838,35]
[322788632,1713293375721,-150.5,0.0003784,35]
[322788633,1713293375746,-536.0,0.00037848,35]
[322788634,1713293375770,-150.5,0.0003785,35]
[322788635,1713293375795,-536.0,0.00037858,35]
[322788636,1713293375834,-150.5,0.0003786,35]
[322788637,1713293375862,-150.5,0.00037998,35]
[322788638,1713293375890,-5385.05323899,0.00038,10]
[322788639,1713293375916,-150.5,0.00038008,35]
[322788640,1713293375942,-150.5,0.00038018,35]
[322788641,1713293375968,-157.19,0.00038018,35]
[322788642,1713293375992,-78711.0,0.000381,29]
[322788643,1713293376017,-41383.78622231,0.000381,29]
[322788644,1713293376041,-500.0,0.00038356,40]
[322788645,1713293376066,-500.0,0.00038356,40]
[322788646,1713293376092,-500.0,0.00038356,40]
[322788647,1713293376118,-504.88041726,0.00038356,40]
[322788648,1713293376144,-500.0,0.00038356,40]
[322788649,1713293376169,-590.56121617,0.00038356,40]
[322788650,1713293376195,-502.51098978,0.00038356,40]
[322788651,1713293376221,-500.0,0.00038356,40]
[322788652,1713293376251,-500.0,0.00038356,40]
[322788653,1713293376276,-500.0,0.00038356,40]